bitfinex-derivatives/quotes_BTCF0:USTF0_20250129
["timestamp","ask_amount","ask_price","bid_price","bid_amount"]
[1738123890526,0.00014685,102100.0,102090.0,1.79816854]
[1738123891729,0.00014685,102100.0,102090.0,1.43736854]
[1738123891928,0.00014685,102100.0,102090.0,1.79816854]
[1738123892730,0.00014685,102100.0,102090.0,1.43736854]
[1738123892930,0.00014685,102100.0,102090.0,1.79816854]
[1738123894938,0.00014685,102100.0,102090.0,1.81288854]
[1738123895235,0.00014685,102100.0,102090.0,1.79816854]
[1738123895532,0.00014685,102100.0,102090.0,1.81288854]
[1738123895724,0.00014685,102100.0,102090.0,1.79816854]
[1738123896133,0.00014685,102100.0,102090.0,1.81288854]
[1738123896625,0.00014685,102100.0,102090.0,1.79816854]
[1738123896825,0.00014685,102100.0,102090.0,1.81288854]
[1738123900530,0.00014685,102100.0,102090.0,1.45208854]
[1738123900725,0.00014685,102100.0,102090.0,1.81288854]
[1738123905337,0.00014685,102100.0,102090.0,1.7645219]
[1738123906636,0.00014685,102100.0,102090.0,1.7498019]
[1738123907033,0.00014685,102100.0,102090.0,1.6690019]
[1738123907232,0.40931349,102100.0,102090.0,1.1182904]
[1738123907425,0.40931349,102100.0,102090.0,1.03344329]
[1738123909327,0.40931349,102100.0,102090.0,1.03044329]
[1738123910238,0.40931349,102100.0,102090.0,0.59393062]
[1738123910736,0.41905199,102100.0,102090.0,0.59393062]
[1738123911833,0.05825199,102100.0,102090.0,0.59393062]
[1738123912038,0.41905199,102100.0,102090.0,0.59393062]
[1738123913326,0.46741863,102100.0,102090.0,0.59393062]
[1738123913742,0.65295327,102100.0,102090.0,0.59393062]
[1738123914040,0.95295327,102100.0,102090.0,0.06632087]
[1738123915747,0.90458663,102100.0,102090.0,0.06632087]
[1738123916645,0.95295327,102100.0,102090.0,0.06632087]
[1738123917144,0.65295327,102100.0,102090.0,0.06632087]
[1738123917444,0.95295327,102100.0,102090.0,0.06632087]
[1738123917743,0.65295327,102100.0,102090.0,0.06632087]
[1738123918243,0.95295327,102100.0,102090.0,0.06632087]
[1738123918439,0.96219966,102100.0,102070.0,0.31271582]
[1738123918640,0.45753328,102080.0,102070.0,0.31271582]
[1738123919643,0.45753328,102080.0,102070.0,0.31571582]
[1738123919942,0.59472828,102080.0,102070.0,0.31571582]
[1738123920146,1.00389492,102080.0,102070.0,0.17850982]
[1738123920844,0.95552828,102080.0,102070.0,0.17850982]
[1738123921245,1.00389492,102080.0,102070.0,0.17850982]
[1738123921629,0.95552828,102080.0,102070.0,0.17850982]
[1738123922936,0.95552828,102080.0,102070.0,0.00314685]
[1738123926044,0.96515623,102080.0,102070.0,0.00314685]
[1738123926843,1.01352287,102080.0,102070.0,0.00314685]
[1738123927141,0.137221,102060.0,102050.0,0.54641226]
[1738123927347,0.95555428,102060.0,102050.0,0.54641226]
[1738123927948,0.95555428,102060.0,102050.0,0.31259497]
[1738123928341,0.95555428,102060.0,102050.0,0.32159497]
[1738123931349,0.23395428,102060.0,102050.0,0.32159497]
[1738123931542,0.95555428,102060.0,102050.0,0.32159497]
[1738123931939,0.95555428,102060.0,102050.0,0.146232]
[1738123932536,0.95555428,102060.0,102050.0,0.009]
[1738123933459,1.00392092,102060.0,102050.0,0.009]
[1738123934850,0.95555428,102060.0,102050.0,0.009]
[1738123936655,1.01360397,102060.0,102050.0,0.009]
[1738123936953,0.96523733,102060.0,102050.0,0.009]
[1738123937158,0.46721633,102060.0,102050.0,0.146235]
[1738123938443,0.46721633,102060.0,102050.0,0.143235]
[1738123944755,0.41884969,102060.0,102050.0,0.143235]
[1738123944959,0.46721633,102060.0,102050.0,0.143235]
[1738123946250,0.46721633,102060.0,102050.0,0.18548505]
[1738123946652,0.46721633,102060.0,102050.0,0.143235]
[1738123947259,0.46721633,102060.0,102050.0,0.0482739]
[1738123947461,0.46721633,102060.0,102050.0,0.006]
[1738123947660,0.46721633,102060.0,102050.0,0.18136297]
[1738123948161,0.46721633,102060.0,102050.0,0.22367005]
[1738123948350,0.10641633,102060.0,102050.0,0.22367005]
[1738123948557,0.82801633,102060.0,102050.0,0.22367005]
[1738123950459,0.82801633,102060.0,102050.0,0.18136297]
[1738123950664,1.03324039,102060.0,102050.0,0.18136297]
[1738123951262,1.21882803,102060.0,102050.0,0.22369443]
[1738123951453,1.11170703,102060.0,102040.0,0.52653627]
[1738123951660,0.65996828,102050.0,102040.0,0.52653627]
[1738123951960,2.15996828,102050.0,102040.0,0.52653627]
[1738123952465,0.65996828,102050.0,102040.0,0.52653627]
[1738123952765,0.65996828,102050.0,102040.0,0.53553627]
[1738123953161,0.65996828,102050.0,102040.0,0.52653627]
[1738123953464,0.65996828,102050.0,102040.0,0.53253627]
[1738123954461,0.77710619,102050.0,102040.0,0.00614685]
[1738123954962,1.13790619,102050.0,102040.0,0.00614685]
[1738123966274,1.18627283,102050.0,102040.0,0.00614685]
[1738123966473,0.09673328,102030.0,102020.0,0.75866342]
[1738123966668,0.45753328,102030.0,102020.0,0.80101958]
[1738123966971,0.81833328,102030.0,102020.0,0.73741958]
[1738123967158,0.81833328,102030.0,102020.0,0.69506342]
[1738123967159,0.95559528,102030.0,102020.0,0.69506342]
[1738123967468,0.90722864,102030.0,102020.0,0.69506342]
[1738123967770,0.90722864,102030.0,102020.0,0.73741392]
[1738123968380,0.90822864,102030.0,102020.0,0.74641392]
[1738123969278,0.90822864,102030.0,102020.0,0.70406342]
[1738123971571,0.18662864,102030.0,102020.0,0.70406342]
[1738123971873,0.91806006,102030.0,102020.0,0.70406342]
[1738123972270,1.006064,102030.0,102020.0,0.177674]
[1738123974582,1.05443064,102030.0,102020.0,0.009]
[1738123974771,0.137275,102020.0,102010.0,0.23396414]
[1738123974971,0.57834164,102020.0,102010.0,0.22492415]
[1738123975279,0.137289,102010.0,102000.0,0.74377743]
[1738123975473,0.59482228,102010.0,102000.0,0.74377743]
[1738123975981,0.54645564,102010.0,102000.0,0.74377743]
[1738123976480,0.54645564,102010.0,102000.0,0.39257213]
[1738123976683,0.57195192,102010.0,102000.0,0.39257213]
[1738123978275,0.57295192,102010.0,102000.0,0.39657213]
[1738123980376,0.57295192,102010.0,102000.0,0.53387413]
[1738123980377,0.001,102010.0,102000.0,0.53387413]
[1738123980572,0.08900394,102010.0,102000.0,0.633402]
[1738123981175,0.08900394,102010.0,102000.0,0.67565973]
[1738123981884,0.08900394,102010.0,102000.0,0.75821973]
[1738123982483,0.27347237,102020.0,102010.0,0.137288]
[1738123982787,0.26369915,102020.0,102010.0,0.61420865]
[1738123983079,0.26369915,102020.0,102010.0,0.54034573]
[1738123983778,0.00014685,102020.0,102010.0,0.54034573]
[1738123984586,0.00014685,102020.0,102010.0,0.61820865]
[1738123984770,0.00014685,102020.0,102010.0,0.54434573]
[1738123985674,0.00014685,102020.0,102010.0,0.68210865]
[1738123991684,0.00970568,102040.0,102030.0,0.137262]
[1738123991887,0.65662332,102050.0,102030.0,0.65440492]
[1738123992086,0.62582332,102050.0,102040.0,0.169148]
[1738123992290,0.62582332,102050.0,102040.0,0.233448]
[1738123992699,0.69968624,102050.0,102040.0,0.233448]
[1738123994197,0.70468624,102050.0,102040.0,0.234448]
[1738123994387,0.44113394,102050.0,102040.0,0.234448]
[1738123995389,0.44113394,102050.0,102040.0,0.0972]
[1738123998104,0.36727102,102050.0,102040.0,0.0972]
[1738123998499,0.36727102,102050.0,102040.0,0.234448]
[1738123998706,0.00647102,102050.0,102040.0,0.234448]
[1738123999992,0.36727102,102050.0,102040.0,0.234448]
[1738124001708,0.00647102,102050.0,102040.0,0.234448]
[1738124002006,0.36727102,102050.0,102040.0,0.234448]
[1738124002696,0.36727102,102050.0,102040.0,0.202348]
[1738124004401,0.39837102,102050.0,102040.0,0.202348]
[1738124004709,0.39837102,102050.0,102040.0,0.001]
[1738124005008,0.50493394,102050.0,102040.0,0.001]
[1738124005313,0.43107102,102050.0,102040.0,0.001]
[1738124007409,0.43107102,102050.0,102040.0,0.0323]
[1738124007906,0.07027102,102050.0,102040.0,0.530348]
[1738124008104,0.00647102,102050.0,102040.0,0.60421092]
[1738124008303,0.00647102,102050.0,102040.0,0.67698662]
[1738124008603,0.00647102,102050.0,102040.0,0.70878662]
[1738124009910,0.00647102,102050.0,102040.0,0.6349237]
[1738124012612,0.00647102,102050.0,102040.0,0.70878662]
[1738124014314,0.00647102,102050.0,102040.0,0.71877938]
[1738124016814,0.00647102,102050.0,102040.0,0.64491646]
[1738124017319,0.00647102,102050.0,102040.0,0.6031237]
[1738124018308,0.08033394,102050.0,102040.0,0.5413237]
[1738124018515,0.14443394,102050.0,102040.0,0.1805237]
[1738124021411,0.07057102,102050.0,102040.0,0.1805237]
[1738124023322,0.00647102,102050.0,102040.0,0.25438662]
[1738124023523,0.00647102,102050.0,102040.0,0.28628662]
[1738124024317,0.00647102,102050.0,102040.0,0.2124237]
[1738124024517,0.00647102,102050.0,102040.0,0.2439237]
[1738124025020,0.00647102,102050.0,102040.0,0.53649583]
[1738124032531,0.00647102,102050.0,102040.0,0.58491177]
[1738124032724,0.00647102,102050.0,102040.0,0.63332771]
[1738124032926,0.00647102,102050.0,102040.0,0.66612771]
[1738124033125,0.00647102,102050.0,102040.0,0.61771177]
[1738124033734,0.005,102050.0,102040.0,0.61771177]
[1738124034631,0.005,102050.0,102040.0,0.64306595]
[1738124039329,0.005,102050.0,102040.0,1.00386595]
[1738124040533,0.005,102050.0,102040.0,1.04399583]
[1738124040930,0.12213791,102050.0,102040.0,1.39520113]
[1738124041731,0.12213791,102050.0,102040.0,1.48004824]
[1738124041937,0.14656124,102060.0,102050.0,0.098024]
[1738124042137,0.14656124,102060.0,102050.0,0.6149997]
[1738124042633,0.14656124,102060.0,102050.0,0.69984681]
[1738124043433,0.14656124,102060.0,102050.0,0.70084681]
[1738124043636,0.14656124,102060.0,102050.0,0.81078317]
[1738124044435,0.14656124,102060.0,102050.0,0.72593606]
[1738124045328,0.14656124,102060.0,102050.0,0.65216594]
[1738124045530,0.00014685,102060.0,102050.0,1.29377952]
[1738124046942,0.00014685,102060.0,102050.0,1.32741976]
[1738124047134,0.21961428,102080.0,102070.0,0.098005]
[1738124047135,0.17751439,102080.0,102070.0,0.098005]
[1738124047438,0.14641439,102080.0,102070.0,1.01789082]
[1738124048727,0.15141439,102080.0,102070.0,1.01789082]
[1738124050634,0.15141439,102080.0,102070.0,0.65709082]
[1738124050839,0.005,102080.0,102070.0,0.94968575]
[1738124053335,0.005,102080.0,102070.0,1.0519922]
[1738124053539,0.005,102080.0,102070.0,0.76899718]
[1738124054739,0.005,102080.0,102070.0,0.78371718]
[1738124056744,0.005,102080.0,102070.0,0.75832913]
[1738124063338,0.005,102080.0,102070.0,0.74360913]
[1738124063649,0.005,102080.0,102070.0,0.64130268]
[1738124064447,0.005,102080.0,102070.0,0.28050268]
[1738124064647,0.005,102080.0,102070.0,0.64130268]
[1738124065050,0.005,102080.0,102070.0,0.28050268]
[1738124065247,0.005,102080.0,102070.0,0.64130268]
[1738124070356,0.035,102080.0,102070.0,0.64130268]
[1738124072654,0.035,102080.0,102070.0,0.93389761]
[1738124074354,0.035,102080.0,102070.0,0.97402749]
[1738124074752,0.035,102080.0,102070.0,0.61322749]
[1738124074949,0.035,102080.0,102070.0,0.97402749]
[1738124076350,0.035,102080.0,102070.0,1.32523279]
[1738124079659,0.035,102080.0,102070.0,1.32304614]
[1738124080663,0.035,102080.0,102070.0,1.40789325]
[1738124083860,0.005,102080.0,102070.0,1.40789325]
[1738124094656,0.005,102080.0,102070.0,1.36776337]
[1738124095162,0.005,102080.0,102070.0,0.92211626]
[1738124095462,0.005,102080.0,102070.0,1.28291626]
[1738124096068,0.005,102080.0,102070.0,1.36776337]
[1738124097766,0.005,102080.0,102070.0,1.40807238]
[1738124098857,0.005,102080.0,102070.0,1.36776337]
[1738124102258,0.005,102080.0,102070.0,1.28291626]
[1738124105765,0.005,102080.0,102070.0,0.99250798]
[1738124107667,0.005,102080.0,102070.0,1.15077011]
[1738124107861,0.005,102080.0,102070.0,1.19123421]
[1738124109367,0.08833354,102090.0,102080.0,0.097996]
[1738124109571,0.08833354,102090.0,102080.0,0.62803584]
[1738124109964,0.08833354,102090.0,102080.0,0.74905994]
[1738124110163,0.17573449,102110.0,102080.0,0.92487862]
[1738124110358,0.17573449,102110.0,102100.0,0.91634114]
[1738124110567,0.17573449,102110.0,102100.0,0.99908094]
[1738124110770,0.17573449,102110.0,102100.0,1.06434637]
[1738124110972,0.17573449,102110.0,102100.0,1.0159643]
[1738124111171,0.22411656,102110.0,102100.0,0.4030757]
[1738124111472,0.64981656,102110.0,102100.0,0.0422757]
[1738124111672,0.65881656,102110.0,102100.0,0.0432757]
[1738124112270,0.65781656,102110.0,102100.0,0.0432757]
[1738124113872,0.48208207,102110.0,102100.0,0.27731603]
[1738124114469,0.12128207,102110.0,102100.0,0.27731603]
[1738124114773,0.0729,102110.0,102100.0,0.47205717]
[1738124115174,0.0729,102110.0,102100.0,0.83285717]
[1738124115471,0.008,102110.0,102100.0,0.86505717]
[1738124115666,0.03044685,102120.0,102100.0,0.87256928]
[1738124115874,0.00014685,102120.0,102110.0,0.50714907]
[1738124116167,0.00014685,102120.0,102110.0,0.54942477]
[1738124116680,0.00014685,102120.0,102110.0,0.61332477]
[1738124117375,0.00714685,102120.0,102110.0,0.61332477]
[1738124117678,0.00714685,102120.0,102110.0,0.66170684]
[1738124117862,0.00714685,102120.0,102110.0,0.76976419]
[1738124118063,0.00714685,102120.0,102110.0,1.45393299]
[1738124118272,0.00014685,102120.0,102110.0,1.45393299]
[1738124118470,0.00914685,102120.0,102110.0,1.45493299]
[1738124119568,0.00914685,102120.0,102110.0,1.46463027]
[1738124119984,0.00914685,102120.0,102110.0,2.10824117]
[1738124120674,0.00014685,102120.0,102110.0,2.10724117]
[1738124120973,0.00414685,102120.0,102110.0,2.10724117]
[1738124121972,0.00414685,102120.0,102110.0,1.8970303]
[1738124122182,0.00414685,102120.0,102110.0,1.9785503]
[1738124124076,0.00414685,102120.0,102110.0,1.56800509]
[1738124128778,0.00014685,102120.0,102110.0,1.56800509]
[1738124128978,0.00114685,102120.0,102110.0,1.56800509]
[1738124129772,0.00114685,102120.0,102110.0,1.59960509]
[1738124129977,0.00114685,102120.0,102110.0,1.64798716]
[1738124130365,0.00114685,102120.0,102110.0,1.59960509]
[1738124130767,0.00114685,102120.0,102110.0,1.64718716]
[1738124130970,0.00114685,102120.0,102110.0,1.74511596]
[1738124132080,0.00114685,102120.0,102110.0,1.69673389]
[1738124134379,0.00114685,102120.0,102110.0,1.61601389]
[1738124134579,0.00114685,102120.0,102110.0,1.69657389]
[1738124134778,0.00114685,102120.0,102110.0,1.71129389]
[1738124135178,0.00114685,102120.0,102110.0,2.0038443]
[1738124136186,0.00114685,102120.0,102110.0,2.05222637]
[1738124136386,0.0635,102130.0,102110.0,1.95425937]
[1738124136578,0.0635,102130.0,102120.0,0.55552114]
[1738124136771,0.0635,102130.0,102120.0,0.62819684]
[1738124137779,0.0645,102130.0,102120.0,0.62819684]
[1738124138382,0.0675,102130.0,102120.0,0.62819684]
[1738124139383,0.0675,102130.0,102120.0,0.86126253]
[1738124141879,0.0675,102130.0,102120.0,1.15381294]
[1738124144590,0.0675,102130.0,102120.0,1.10543087]
[1738124144795,0.0675,102130.0,102120.0,1.27180774]
[1738124145292,0.0675,102130.0,102120.0,1.31177271]
[1738124145687,0.004,102130.0,102120.0,1.41628488]
[1738124145906,0.03134685,102140.0,102130.0,0.097948]
[1738124146092,0.03134685,102140.0,102130.0,0.54709504]
[1738124146287,0.03134685,102140.0,102130.0,0.69599637]
[1738124146694,0.00014685,102140.0,102130.0,0.74437844]
[1738124147800,0.00314685,102140.0,102130.0,0.74437844]
[1738124148003,0.00314685,102140.0,102130.0,0.69599637]
[1738124148800,0.00314685,102140.0,102130.0,0.7369114]
[1738124149000,0.03624685,102140.0,102130.0,0.7369114]
[1738124149407,0.03324685,102140.0,102130.0,0.7369114]
[1738124149595,0.03324685,102140.0,102130.0,0.63028577]
[1738124149796,0.03324685,102140.0,102130.0,0.92069405]
[1738124150606,0.03324685,102140.0,102130.0,0.94595338]
[1738124152109,0.03324685,102140.0,102130.0,0.88026217]
[1738124153500,0.46768825,102140.0,102130.0,0.76565878]
[1738124154307,0.39404685,102140.0,102130.0,0.76565878]
[1738124155109,0.46768825,102140.0,102130.0,0.76565878]
[1738124155300,0.46768825,102140.0,102130.0,0.68469878]
[1738124155800,0.47536977,102140.0,102130.0,0.68469878]
[1738124156609,0.57330777,102140.0,102130.0,0.68469878]
[1738124156799,0.57330777,102140.0,102130.0,0.64242308]
[1738124157405,0.57330777,102140.0,102130.0,0.23360381]
[1738124157799,0.77536977,102140.0,102120.0,0.64242308]
[1738124157997,0.5970894,102130.0,102120.0,0.37836872]
[1738124158196,0.6707308,102130.0,102120.0,0.37836872]
[1738124158402,0.9707308,102130.0,102120.0,0.32846872]
[1738124158607,0.8970894,102130.0,102120.0,0.27856872]
[1738124158807,0.9707308,102130.0,102120.0,0.12886872]
[1738124159107,0.9707308,102130.0,102120.0,0.05296872]
[1738124159309,0.9707308,102130.0,102120.0,0.03596872]
[1738124159610,0.097957,102120.0,102110.0,0.28075512]
[1738124159808,0.6060398,102120.0,102110.0,0.28075512]
[1738124160006,0.9060398,102120.0,102110.0,0.28075512]
[1738124161506,0.097967,102110.0,102100.0,0.00014685]
[1738124161710,0.5324084,102110.0,102100.0,0.00014685]
[1738124162308,0.8932084,102110.0,102100.0,0.00014685]
[1738124164110,0.8932084,102110.0,102100.0,0.00314685]
[1738124165608,0.8932084,102110.0,102100.0,0.10112385]
[1738124165609,0.3608,102110.0,102100.0,0.10112385]
[1738124165807,0.3608,102110.0,102100.0,0.16422385]
[1738124167211,0.4344414,102110.0,102100.0,0.16422385]
[1738124167710,0.0736414,102110.0,102100.0,0.16422385]
[1738124167915,0.4344414,102110.0,102100.0,0.16422385]
[1738124168313,0.4344414,102110.0,102100.0,0.19752385]
[1738124170914,0.3608,102110.0,102100.0,0.19752385]
[1738124173323,0.4344414,102110.0,102100.0,0.19752385]
[1738124183526,0.5324084,102110.0,102100.0,0.09954685]
[1738124187423,0.85415699,102110.0,102100.0,0.09954685]
[1738124189936,0.53629923,102110.0,102100.0,0.19752385]
[1738124190326,0.53629923,102110.0,102100.0,0.23983878]
[1738124192233,0.47820841,102110.0,102100.0,0.23983878]
[1738124193835,0.11740841,102110.0,102100.0,0.31348018]
[1738124194036,0.11740841,102110.0,102100.0,0.35533482]
[1738124194334,0.11740841,102110.0,102100.0,0.44205482]
[1738124195334,0.11740841,102110.0,102100.0,0.80285482]
[1738124196132,0.26419411,102110.0,102100.0,0.80285482]
[1738124196732,0.26419411,102110.0,102100.0,0.44205482]
[1738124196933,0.26419411,102110.0,102100.0,0.80285482]
[1738124199633,0.65385449,102120.0,102100.0,0.80285482]
[1738124199834,0.47835526,102120.0,102100.0,0.80285482]
[1738124200439,0.47835526,102120.0,102100.0,0.76100018]
[1738124200634,0.47835526,102120.0,102100.0,0.75800018]
[1738124200838,0.47835526,102120.0,102100.0,0.76100018]
[1738124202828,0.47835526,102120.0,102100.0,0.76400018]
[1738124205140,0.11755526,102120.0,102110.0,0.097967]
[1738124205343,0.11755526,102120.0,102110.0,0.14028193]
[1738124206540,0.00014685,102120.0,102110.0,0.50408193]
[1738124206941,0.00014685,102120.0,102110.0,0.14328193]
[1738124207140,0.00014685,102120.0,102110.0,0.21692333]
[1738124207739,0.00014685,102120.0,102110.0,0.62058141]
[1738124211043,0.00014685,102120.0,102110.0,0.63038142]
[1738124215044,0.00014685,102120.0,102110.0,0.63744214]
[1738124215446,0.00014685,102120.0,102110.0,0.65216214]
[1738124215743,0.00014685,102120.0,102110.0,0.63744214]
[1738124216644,0.00014685,102120.0,102110.0,0.65216214]
[1738124217044,0.00014685,102120.0,102110.0,0.63744214]
[1738124217238,0.00014685,102120.0,102110.0,0.65216214]
[1738124217437,0.00014685,102120.0,102110.0,0.63744214]
[1738124217854,0.11740841,102140.0,102130.0,0.097948]
[1738124218147,0.11740841,102140.0,102130.0,0.70464241]
[1738124219143,0.12040841,102140.0,102130.0,0.70464241]
[1738124220152,0.12040841,102140.0,102130.0,0.66178433]
[1738124222550,0.12040841,102140.0,102130.0,0.81121015]
[1738124223853,0.003,102140.0,102130.0,0.81121015]
[1738124224947,0.11755526,102150.0,102140.0,0.097938]
[1738124225147,0.11755526,102150.0,102140.0,0.68125241]
[1738124225353,0.11755526,102150.0,102140.0,0.69105242]
[1738124226549,0.12055526,102150.0,102140.0,0.69105242]
[1738124227354,0.12055526,102150.0,102140.0,0.79831836]
[1738124227551,0.12055526,102150.0,102140.0,0.69105242]
[1738124228153,0.00314685,102150.0,102140.0,0.67989434]
[1738124234756,0.00314685,102150.0,102140.0,0.72275242]
[1738124235561,0.00314685,102150.0,102140.0,0.60625294]
[1738124236065,0.00314685,102150.0,102140.0,0.67989434]
[1738124241062,0.00314685,102150.0,102140.0,0.67009433]
[1738124242550,0.00314685,102150.0,102140.0,0.69308365]
[1738124242761,0.00314685,102150.0,102140.0,0.64476829]
[1738124244759,0.00314685,102150.0,102140.0,0.69308365]
[1738124246063,0.00014685,102150.0,102140.0,0.69308365]
[1738124246267,0.00014685,102150.0,102140.0,0.73594173]
[1738124256377,0.00014685,102150.0,102140.0,0.37514173]
[1738124256567,0.00014685,102150.0,102140.0,0.73594173]
[1738124256769,0.08785694,102150.0,102140.0,0.73594173]
[1738124261175,0.08785694,102150.0,102140.0,0.82078884]
[1738124262273,0.08785694,102150.0,102140.0,0.82378884]
[1738124263981,0.00014685,102150.0,102140.0,0.82378884]
[1738124265676,0.40926221,102150.0,102140.0,0.26842012]
[1738124266181,0.40926221,102150.0,102140.0,0.18357301]
[1738124267877,0.40926221,102150.0,102140.0,0.18057301]
[1738124268078,0.40926221,102150.0,102140.0,0.13771493]
[1738124269287,0.41731948,102150.0,102140.0,0.13771493]
[1738124270682,0.00820412,102150.0,102140.0,0.28396829]
[1738124271075,0.20526535,102150.0,102140.0,0.28396829]
[1738124271285,0.56606535,102150.0,102140.0,0.28396829]
[1738124271786,0.20526535,102150.0,102140.0,0.28396829]
[1738124273286,0.20526535,102150.0,102140.0,0.23565293]
[1738124274584,0.25358071,102150.0,102140.0,0.23565293]
[1738124275088,0.61438071,102150.0,102140.0,0.13771493]
[1738124275999,0.61438071,102150.0,102140.0,0.04231493]
[1738124282778,0.71230971,102150.0,102140.0,0.04231493]
[1738124282980,0.76062507,102150.0,102140.0,0.04216809]
[1738124283186,0.76062507,102150.0,102130.0,0.68152]
[1738124283386,0.45743072,102140.0,102130.0,0.72386337]
[1738124284485,0.45743072,102140.0,102130.0,0.72686337]
[1738124284986,0.45743072,102140.0,102130.0,0.72386337]
[1738124285186,0.66254922,102140.0,102130.0,0.14094337]
[1738124285584,0.61423386,102140.0,102130.0,0.14094337]
[1738124286294,0.66254922,102140.0,102130.0,0.14094337]
[1738124286984,0.61423386,102140.0,102130.0,0.14094337]
[1738124289595,0.6223634,102140.0,102130.0,0.14094337]
[1738124304601,0.53465331,102140.0,102130.0,0.14094337]
[1738124305003,0.58296867,102140.0,102130.0,0.14094337]
[1738124307901,0.22216867,102140.0,102130.0,0.14094337]
[1738124308097,0.58296867,102140.0,102130.0,0.14094337]
[1738124308798,0.72975437,102140.0,102130.0,0.14094337]
[1738124309002,0.82769237,102140.0,102130.0,0.14094337]
[1738124309394,0.82769237,102140.0,102130.0,0.04534337]
[1738124309693,0.83099237,102140.0,102130.0,0.003]
[1738124310704,0.87930773,102140.0,102130.0,0.003]
[1738124310897,0.87930773,102140.0,102110.0,0.0956]
[1738124310898,0.097948,102130.0,102110.0,0.0956]
[1738124311097,0.097948,102130.0,102100.0,0.00980001]
[1738124311098,0.097967,102110.0,102100.0,0.00980001]
[1738124311307,0.097977,102100.0,102090.0,0.56676238]
[1738124311507,0.55540772,102100.0,102090.0,0.60916824]
[1738124311808,0.55540772,102100.0,102090.0,0.56676238]
[1738124312011,0.55540772,102100.0,102090.0,0.0983]
[1738124312515,0.55540772,102100.0,102090.0,0.196286]
[1738124312911,0.50709236,102100.0,102090.0,0.196286]
[1738124313204,0.55540772,102100.0,102090.0,0.196286]
[1738124313795,0.55540772,102100.0,102090.0,0.205286]
[1738124314796,0.50709236,102100.0,102090.0,0.205286]
[1738124316207,0.51523323,102100.0,102090.0,0.205286]
[1738124317200,0.51523323,102100.0,102090.0,0.1073]
[1738124318411,0.56354859,102100.0,102090.0,0.1073]
[1738124320604,0.51523323,102100.0,102090.0,0.1073]
[1738124320800,0.56354859,102100.0,102090.0,0.1073]
[1738124321209,0.41725623,102100.0,102090.0,0.205286]
[1738124321406,0.04831536,102100.0,102090.0,0.205286]
[1738124321609,0.23428719,102110.0,102090.0,0.566086]
[1738124321806,0.13631919,102110.0,102090.0,0.566086]
[1738124322006,0.04831536,102100.0,102090.0,0.205286]
[1738124322203,0.04831536,102100.0,102090.0,0.566086]
[1738124322409,0.04831536,102100.0,102090.0,0.205286]
[1738124323119,0.04831536,102100.0,102090.0,0.288126]
[1738124323310,0.45743072,102100.0,102090.0,0.1073]
[1738124323513,0.55540772,102100.0,102090.0,0.1073]
[1738124324226,0.55540772,102100.0,102090.0,0.0983]
[1738124324414,0.55540772,102100.0,102090.0,0.1073]
[1738124325220,0.60372308,102100.0,102090.0,0.009]
[1738124325416,0.72634608,102100.0,102080.0,0.00994686]
[1738124325616,0.55541672,102090.0,102080.0,0.00994686]
[1738124326328,0.50710136,102090.0,102080.0,0.00994686]
[1738124326921,0.50710136,102090.0,102080.0,0.01894686]
[1738124331135,0.50710136,102090.0,102080.0,0.00914685]
[1738124331430,0.55541672,102090.0,102080.0,0.00914685]
[1738124332238,0.55851672,102090.0,102080.0,0.00914685]
[1738124332434,0.56700675,102090.0,102080.0,0.00914685]
[1738124335637,0.65486373,102090.0,102080.0,0.00914685]
[1738124336141,0.60344837,102090.0,102080.0,0.00914685]
[1738124337332,0.65176373,102090.0,102080.0,0.00914685]
[1738124337532,0.60344837,102090.0,102080.0,0.00914685]
[1738124338146,0.65176373,102090.0,102080.0,0.00914685]
[1738124338447,0.60344837,102090.0,102080.0,0.00914685]
[1738124338640,0.72059101,102090.0,102080.0,0.00914685]
[1738124338947,0.76890637,102090.0,102080.0,0.00914685]
[1738124339145,0.72059101,102090.0,102080.0,0.00914685]
[1738124340241,0.76890637,102090.0,102080.0,0.00914685]
[1738124340847,0.68104939,102090.0,102080.0,0.00914685]
[1738124344154,0.8274777,102090.0,102080.0,0.00914685]
[1738124347641,0.71033506,102090.0,102080.0,0.00914685]
[1738124354255,0.88583429,102090.0,102080.0,0.00914685]
[1738124355452,0.097996,102080.0,102070.0,0.10671174]
[1738124355653,0.50711136,102080.0,102070.0,0.10671174]
[1738124355855,0.60374208,102080.0,102070.0,0.10671174]
[1738124357245,0.60474208,102080.0,102070.0,0.11371174]
[1738124357541,0.60474208,102080.0,102070.0,0.01691174]
[1738124357747,0.098006,102070.0,102060.0,0.00014685]
[1738124358048,0.55543672,102070.0,102060.0,0.00014685]
[1738124359857,0.55553957,102070.0,102060.0,0.00014685]
[1738124360162,0.55543672,102070.0,102060.0,0.00014685]
[1738124360461,0.55643672,102070.0,102060.0,0.00114685]
[1738124360953,0.87922479,102070.0,102060.0,0.00114685]
[1738124362151,0.87932798,102070.0,102060.0,0.00114685]
[1738124362351,0.87922479,102070.0,102060.0,0.00114685]
[1738124362760,0.51842479,102070.0,102060.0,0.00114685]
[1738124362961,1.24002479,102070.0,102060.0,0.00114685]
[1738124363656,1.06395857,102070.0,102060.0,0.00114685]
[1738124363854,1.01564321,102070.0,102060.0,0.00114685]
[1738124364157,1.06395857,102070.0,102060.0,0.00114685]
[1738124364463,1.01564321,102070.0,102060.0,0.00114685]
[1738124365066,1.01564321,102070.0,102060.0,0.09916185]
[1738124365067,1.01573828,102070.0,102060.0,0.09916185]
[1738124365764,1.13298679,102070.0,102060.0,0.09916185]
[1738124366063,1.14164834,102070.0,102060.0,0.09916185]
[1738124368361,0.72205471,102070.0,102060.0,0.09916185]
[1738124369471,0.26324871,102070.0,102060.0,0.14157806]
[1738124369769,0.62404871,102070.0,102060.0,0.14157806]
[1738124370557,0.5068002,102070.0,102060.0,0.14157806]
[1738124371572,0.5068002,102070.0,102060.0,0.09916185]
[1738124372266,0.5068002,102070.0,102060.0,0.14158471]
[1738124373660,0.1460002,102070.0,102060.0,0.14158471]
[1738124373860,0.5068002,102070.0,102060.0,0.14158471]
[1738124377068,0.1460002,102070.0,102060.0,0.14158471]
[1738124377463,0.5068002,102070.0,102060.0,0.14158471]
[1738124379174,0.5068002,102070.0,102060.0,0.09916185]
[1738124379574,0.5068002,102070.0,102060.0,0.14160987]
[1738124379774,0.62404871,102070.0,102060.0,0.09916185]
[1738124380275,0.62404871,102070.0,102060.0,0.14161239]
[1738124382977,0.62404871,102070.0,102060.0,0.04359739]
[1738124383165,0.77036907,102070.0,102060.0,0.00114685]
[1738124383369,0.770274,102070.0,102060.0,0.00114685]
[1738124384078,2.270274,102070.0,102060.0,0.00114685]
[1738124384473,0.77038966,102070.0,102060.0,0.00114685]
[1738124384680,0.77036354,102070.0,102060.0,0.00114685]
[1738124384880,0.77036154,102070.0,102060.0,0.00114685]
[1738124385076,0.770274,102070.0,102060.0,0.00114685]
[1738124386967,0.88800875,102070.0,102060.0,0.00114685]